bitfinex-derivatives/quotes_BTCF0:USTF0_20251214
["timestamp","ask_amount","ask_price","bid_price","bid_amount"]
[1765670402739,0.05556609,90307.0,90306.0,0.07524]
[1765670403442,0.05556609,90307.0,90295.0,0.03979357]
[1765670403443,0.0554,90290.0,90289.0,0.09850357]
[1765670403644,0.0554,90290.0,90289.0,0.05871]
[1765670403843,0.0554,90290.0,90289.0,0.0697835]
[1765670404338,0.3608,90299.0,90298.0,0.0697824]
[1765670404339,0.02708,90299.0,90298.0,0.0697824]
[1765670404537,0.0554,90299.0,90298.0,0.0697824]
[1765670404739,0.0554,90299.0,90297.0,0.01653]
[1765670404740,0.05556609,90307.0,90306.0,0.0697814]
[1765670411646,0.05556609,90307.0,90306.0,0.05871]
[1765670413844,0.41636609,90307.0,90306.0,0.05871]
[1765670417137,0.41636609,90307.0,90300.0,0.01653]
[1765670417138,0.066472,90301.0,90300.0,0.02993]
[1765670417342,0.0554,90298.0,90297.0,0.05871]
[1765670417650,0.0664724,90298.0,90297.0,0.05871]
[1765670417944,0.0664728,90295.0,90294.0,0.07524]
[1765670423648,0.0554,90295.0,90294.0,0.07524]
[1765670424849,0.3608,90299.0,90298.0,0.0697824]
[1765670425149,0.38804609,90307.0,90306.0,0.0697814]
[1765670425339,0.41636609,90307.0,90306.0,0.0697814]
[1765670427643,0.44010865,90307.0,90306.0,0.0697814]
[1765670429051,0.07930865,90307.0,90306.0,0.0697814]
[1765670430246,0.05637,90297.0,90296.0,0.07572]
[1765670430463,0.08011256,90297.0,90296.0,0.07572]
[1765670433655,0.10339552,90297.0,90296.0,0.07572]
[1765670433967,0.07965296,90299.0,90298.0,0.05919]
[1765670434260,0.10339336,90299.0,90298.0,0.05919]
[1765670434448,0.13081336,90299.0,90298.0,0.05919]
[1765670434648,0.0511604,90299.0,90298.0,0.05919]
[1765670437047,0.13081034,90299.0,90298.0,0.05919]
[1765670437255,0.0511604,90299.0,90298.0,0.05919]
[1765670437758,0.0237404,90299.0,90298.0,0.05919]
[1765670437965,0.05637,90306.0,90305.0,0.0873515]
[1765670438156,0.08011187,90306.0,90305.0,0.0873515]
[1765670439961,0.05637,90296.0,90295.0,0.0405828]
[1765670440162,0.08011187,90296.0,90295.0,0.0702628]
[1765670440664,0.08011187,90296.0,90295.0,0.0873528]
[1765670447568,0.08011528,90296.0,90295.0,0.0873528]
[1765670461574,0.08011528,90296.0,90288.0,0.00016609]
[1765670461768,0.05637,90296.0,90295.0,0.05671]
[1765670461978,0.08062384,90296.0,90295.0,0.05671]
[1765670462163,0.18025128,90296.0,90295.0,0.0677828]
[1765670462364,0.08062384,90296.0,90295.0,0.0677828]
[1765670465376,0.44142384,90296.0,90295.0,0.0677828]
[1765670466467,0.44142384,90296.0,90295.0,0.05671]
[1765670471581,0.07227,90291.0,90288.0,0.00016609]
[1765670471784,0.02425384,90290.0,90288.0,0.00016609]
[1765670472084,0.17933977,90289.0,90288.0,0.01123969]
[1765670472779,0.17933977,90289.0,90288.0,0.01323969]
[1765670474680,0.17933977,90289.0,90288.0,0.01223969]
[1765670474872,0.17933977,90289.0,90288.0,0.01323969]
[1765670481685,0.17933977,90289.0,90288.0,0.00018094]
[1765670482287,0.17933977,90289.0,90288.0,0.01125454]
[1765670483884,0.07962384,90289.0,90288.0,0.01125454]
[1765670486188,0.17933977,90289.0,90288.0,0.01125454]
[1765670487685,0.15508593,90289.0,90288.0,0.01125454]
[1765670487886,0.05537,90289.0,90288.0,0.01125454]
[1765670490496,0.11661593,90290.0,90289.0,0.0110735]
[1765670490497,0.0169,90290.0,90289.0,0.0110735]
[1765670492206,0.0169,90290.0,90289.0,0.0120735]
[1765670492607,0.04607,90290.0,90289.0,0.0120735]
[1765670493307,0.07423,90290.0,90289.0,0.0120735]
[1765670511429,0.05733,90280.0,90279.0,0.01124079]
[1765670512022,0.3608,90281.0,90278.0,0.000117]
[1765670512221,0.0747,90279.0,90278.0,0.000117]
[1765670512421,0.0747,90279.0,90278.0,0.0111918]
[1765670514131,0.0747,90279.0,90278.0,0.0131918]
[1765670514534,0.0747,90279.0,90278.0,0.0151918]
[1765670520541,0.01737,90279.0,90278.0,0.0151918]
[1765670521136,0.07229,90279.0,90278.0,0.0151918]
[1765670522544,0.13200848,90279.0,90278.0,0.0151918]
[1765670523244,0.07229,90279.0,90278.0,0.0151918]
[1765670523647,0.13201216,90279.0,90278.0,0.3759918]
[1765670523947,0.07229,90279.0,90278.0,0.3759918]
[1765670533149,0.07229,90279.0,90278.0,0.0151918]
[1765670533353,0.15191031,90279.0,90278.0,0.0151918]
[1765670533653,0.07229,90279.0,90278.0,0.0151918]
[1765670535455,0.15193928,90279.0,90278.0,0.0151918]
[1765670538162,0.07229,90279.0,90278.0,0.0151918]
[1765670550465,0.15197772,90279.0,90278.0,0.0151918]
[1765670553666,0.15197772,90279.0,90278.0,0.3759918]
[1765670555160,0.07229,90279.0,90278.0,0.3759918]
[1765670557062,0.07229,90279.0,90278.0,0.0151918]
[1765670557267,0.07229,90279.0,90278.0,0.3759918]
[1765670561074,0.07229,90279.0,90278.0,0.3323715]
[1765670561278,0.07498,90270.0,90269.0,0.00016609]
[1765670561974,0.43578,90270.0,90269.0,0.00016609]
[1765670562170,0.43589522,90270.0,90269.0,0.00016609]
[1765670562476,0.43789522,90270.0,90269.0,0.00016609]
[1765670563174,0.43889522,90270.0,90269.0,0.00016609]
[1765670563375,0.44089522,90270.0,90269.0,0.00016609]
[1765670563876,0.44089522,90270.0,90250.0,0.41537]
[1765670563877,0.0171,90261.0,90250.0,0.41537]
[1765670564067,0.05787,90251.0,90250.0,0.05457]
[1765670564269,0.05797187,90251.0,90250.0,0.05457]
[1765670565778,0.05797187,90251.0,90250.0,0.41537]
[1765670568374,0.117643,90251.0,90250.0,0.41537]
[1765670571278,0.05797187,90251.0,90250.0,0.41537]
[1765670577096,0.07484,90246.0,90245.0,0.05744]
[1765670577301,0.07484,90246.0,90245.0,0.02934]
[1765670577500,0.07484,90246.0,90245.0,0.05744]
[1765670577889,0.09826043,90246.0,90245.0,0.05744]
[1765670578192,0.09826043,90246.0,90245.0,0.05844]
[1765670592398,0.17795855,90246.0,90245.0,0.05844]
[1765670594206,0.16030855,90246.0,90245.0,0.05844]
[1765670594807,0.17795855,90246.0,90245.0,0.05844]
[1765670595208,0.09826043,90246.0,90245.0,0.05844]
[1765670600207,0.16032926,90246.0,90245.0,0.05844]
[1765670602612,0.17797926,90246.0,90245.0,0.05844]
[1765670604316,0.09826043,90246.0,90245.0,0.05844]
[1765670605813,0.09826043,90246.0,90245.0,0.41924]
[1765670606010,0.09826043,90246.0,90245.0,0.05844]
[1765670606217,0.09826043,90246.0,90245.0,0.41924]
[1765670610212,0.09826043,90246.0,90241.0,0.00016619]
[1765670610213,0.0703493,90242.0,90241.0,0.00016619]
[1765670610407,0.05927,90229.0,90228.0,0.3608]
[1765670610608,0.05927,90226.0,90225.0,0.02725]
[1765670610812,0.08278929,90226.0,90225.0,0.02725]
[1765670611413,0.08278929,90226.0,90225.0,0.05725]
[1765670612111,0.08278929,90226.0,90225.0,0.02725]
[1765670612512,0.08578929,90226.0,90225.0,0.02725]
[1765670613314,0.1420217,90226.0,90225.0,0.02725]
[1765670613512,0.16544213,90226.0,90225.0,0.05725]
[1765670614012,0.05927,90217.0,90216.0,0.00011094]
[1765670614218,0.44349043,90217.0,90216.0,0.00011094]
[1765670614913,0.44358839,90217.0,90216.0,0.00011094]
[1765670615219,0.44558839,90217.0,90216.0,0.00011094]
[1765670615416,0.01655,90195.0,90191.0,0.0383355]
[1765670615620,0.05927,90192.0,90191.0,0.0683355]
[1765670615915,0.08269043,90192.0,90191.0,0.02725]
[1765670616221,0.05927,90187.0,90186.0,0.3608]
[1765670616417,0.05927,90178.0,90177.0,0.4291372]
[1765670616617,0.08269043,90178.0,90177.0,0.02725]
[1765670617018,0.08269043,90178.0,90177.0,0.0683372]
[1765670618317,0.08269043,90178.0,90177.0,0.0693372]
[1765670618719,0.08269043,90178.0,90177.0,0.0703372]
[1765670621011,0.02342043,90178.0,90177.0,0.4311372]
[1765670621213,0.0001261,90187.0,90186.0,0.0683361]
[1765670621413,0.00016628,90196.0,90195.0,0.085165]
[1765670621612,0.10481037,90215.0,90214.0,0.02725]
[1765670621613,0.16408037,90215.0,90214.0,0.02725]
[1765670621920,0.0735,90210.0,90209.0,0.05725]
[1765670622525,0.07356941,90210.0,90209.0,0.05725]
[1765670623717,0.07656941,90210.0,90209.0,0.05725]
[1765670624024,0.08056941,90210.0,90209.0,0.05725]
[1765670624424,0.05927,90201.0,90200.0,0.00016628]
[1765670624626,0.05927,90201.0,90200.0,0.05741628]
[1765670625319,0.42007,90206.0,90205.0,0.0683338]
[1765670625528,0.05927,90206.0,90205.0,0.0683338]
[1765670627432,0.06127,90206.0,90205.0,0.0683338]
[1765670627633,0.06427,90206.0,90205.0,0.0683338]
[1765670627819,0.06427,90206.0,90205.0,0.0110838]
[1765670628132,0.05927,90201.0,90200.0,0.06850068]
[1765670629432,0.06127,90201.0,90200.0,0.05741628]
[1765670629630,0.06327,90201.0,90200.0,0.05741628]
[1765670631728,0.06327,90201.0,90200.0,0.00016628]
[1765670633221,0.08668092,90201.0,90200.0,0.02741628]
[1765670634126,0.08668092,90201.0,90200.0,0.00016628]
[1765670634829,0.05927,90182.0,90181.0,0.0683367]
[1765670635033,0.08275033,90182.0,90181.0,0.0683367]
[1765670636133,0.08275033,90182.0,90181.0,0.0693367]
[1765670636525,0.08275033,90182.0,90181.0,0.0703367]
[1765670637128,0.08275033,90182.0,90181.0,0.0403367]
[1765670637330,0.08275033,90182.0,90181.0,0.0586]
[1765670637837,0.05312033,90182.0,90181.0,0.0586]
[1765670638326,0.08039033,90182.0,90181.0,0.0586]
[1765670638933,0.02348033,90182.0,90181.0,0.0586]
[1765670640341,0.05948791,90182.0,90181.0,0.0586]
[1765670640559,0.02348033,90182.0,90181.0,0.0586]
[1765670641438,0.05958478,90191.0,90190.0,0.0566]
[1765670641743,0.02370517,90191.0,90190.0,0.4174]
[1765670642132,0.0594185,90194.0,90193.0,0.0566]
[1765670642332,0.02833,90203.0,90202.0,0.0676842]
[1765670642530,0.02833,90203.0,90202.0,0.4284842]
[1765670642736,0.0556,90203.0,90202.0,0.4284842]
[1765670644622,0.0576,90203.0,90202.0,0.4284842]
[1765670644828,0.002,90203.0,90202.0,0.4284842]
[1765670645136,0.004,90203.0,90202.0,0.4284842]
[1765670646641,0.07965995,90211.0,90210.0,0.07366]
[1765670646826,0.00016628,90212.0,90210.0,0.07366]
[1765670646827,0.00016628,90212.0,90211.0,0.0676831]
[1765670648541,0.00116628,90212.0,90211.0,0.0676831]
[1765670648726,0.00216628,90212.0,90211.0,0.0676831]
[1765670648932,0.00116628,90212.0,90211.0,0.0676831]
[1765670649133,0.00216628,90212.0,90211.0,0.0676831]
[1765670651446,0.00180213,90212.0,90211.0,0.0676831]
[1765670651641,0.0556,90230.0,90229.0,0.0676809]
[1765670653849,0.0586,90230.0,90229.0,0.0676809]
[1765670654236,0.08203215,90230.0,90229.0,0.0676809]
[1765670654437,0.07903215,90230.0,90229.0,0.0676809]
[1765670654645,0.08203215,90230.0,90229.0,0.4284809]
[1765670655746,0.08203215,90230.0,90229.0,0.0676809]
[1765670657144,0.00864,90225.0,90221.0,0.3608]
[1765670657349,0.0556,90221.0,90220.0,0.00016628]
[1765670657548,0.07903215,90221.0,90220.0,0.00016628]
[1765670659545,0.07903215,90221.0,90220.0,0.02755628]
[1765670659946,0.07903215,90221.0,90220.0,0.00016628]
[1765670660146,0.08003215,90221.0,90220.0,0.00016628]
[1765670661756,0.08003215,90221.0,90220.0,0.02755628]
[1765670662941,0.08003215,90221.0,90210.0,0.3608]
[1765670662942,0.0556,90211.0,90210.0,0.3608]
[1765670663253,0.07903215,90211.0,90210.0,0.4174]
[1765670663451,0.07903215,90211.0,90210.0,0.4284832]
[1765670664352,0.07903215,90211.0,90210.0,0.4304832]
[1765670665359,0.13861483,90211.0,90210.0,0.4304832]
[1765670667154,0.07903215,90211.0,90210.0,0.4304832]
[1765670667754,0.0556,90211.0,90210.0,0.4304832]
[1765670669058,0.0556,90211.0,90210.0,0.4473532]
[1765670669860,0.0556,90211.0,90210.0,0.002]
[1765670670067,0.0666831,90211.0,90210.0,0.002]
[1765670670360,0.0556,90211.0,90210.0,0.05941]
[1765670671860,0.07942976,90219.0,90218.0,0.0684922]
[1765670672065,0.05922628,90220.0,90219.0,0.05741]
[1765670672262,0.08252134,90220.0,90219.0,0.05741]
[1765670673763,0.05906,90211.0,90210.0,0.3608]
[1765670674065,0.05906,90211.0,90201.0,0.06866058]
[1765670674066,0.05906,90202.0,90201.0,0.06866058]
[1765670674271,0.08235506,90202.0,90201.0,0.06866058]
[1765670676571,0.08235506,90202.0,90201.0,0.07066058]
[1765670677469,0.08235506,90202.0,90201.0,0.07366058]
[1765670681967,0.14208593,90202.0,90201.0,0.07366058]
[1765670683368,0.08235506,90202.0,90201.0,0.07366058]
[1765670687170,0.02329506,90202.0,90201.0,0.07366058]
[1765670687381,0.02951,90209.0,90208.0,0.05741]
[1765670687574,0.05284778,90209.0,90208.0,0.41821]
[1765670687762,0.02333778,90209.0,90208.0,0.41821]
[1765670688968,0.02333778,90209.0,90208.0,0.41921]
[1765670689666,0.02333778,90209.0,90208.0,0.42121]
[1765670690867,0.05284778,90209.0,90208.0,0.42121]
[1765670694381,0.08239778,90209.0,90208.0,0.42121]
[1765670697482,0.08239778,90209.0,90208.0,0.41905]
[1765670697872,0.05906,90209.0,90208.0,0.41905]
[1765670700781,0.41986,90209.0,90208.0,0.003]
[1765670702084,0.05906,90209.0,90208.0,0.05825]
[1765670704585,0.02951,90209.0,90208.0,0.05825]
[1765670704788,0.05707,90209.0,90208.0,0.05825]
[1765670704983,0.05707,90209.0,90208.0,0.003]
[1765670705691,0.05707,90209.0,90208.0,0.03086]
[1765670706189,0.05707,90209.0,90208.0,0.003]
[1765670706494,0.05707,90209.0,90208.0,0.05825]
[1765670709192,0.05707,90209.0,90208.0,0.03086]
[1765670709392,0.05707,90209.0,90208.0,0.05825]
[1765670711190,0.10934976,90215.0,90214.0,0.0663327]
[1765670711497,0.02992,90215.0,90214.0,0.0663327]
[1765670711793,0.00016628,90220.0,90219.0,0.05525]
[1765670711994,0.05764628,90220.0,90219.0,0.0663321]
[1765670713301,0.13707604,90220.0,90219.0,0.0663321]
[1765670713895,0.13807604,90220.0,90219.0,0.0663321]
[1765670715491,0.04391,90210.0,90209.0,0.02786]
[1765670715698,0.05748,90209.0,90208.0,0.3718834]
[1765670715896,0.05748,90209.0,90208.0,0.3997434]
[1765670716097,0.05748,90209.0,90208.0,0.4271334]
[1765670717198,0.05748,90209.0,90208.0,0.4291334]
[1765670717999,0.05748,90209.0,90208.0,0.4301334]
[1765670718794,0.02992,90214.0,90213.0,0.0663328]
[1765670718999,0.1096253,90217.0,90216.0,0.0837924]
[1765670719201,0.1371853,90217.0,90216.0,0.0663324]
[1765670719392,0.02756,90213.0,90212.0,0.0663328]
[1765670719593,0.05748,90209.0,90208.0,0.4027434]
[1765670720000,0.05748,90209.0,90208.0,0.4301334]
[1765670720197,0.05748,90209.0,90208.0,0.4271334]
[1765670720898,0.05748,90209.0,90208.0,0.4291334]
[1765670721100,0.05748,90209.0,90208.0,0.4301334]
[1765670722202,0.02992,90213.0,90212.0,0.0663329]
[1765670722597,0.05748,90213.0,90212.0,0.0663329]
[1765670723499,0.05748,90213.0,90212.0,0.0673329]
[1765670725495,0.05748,90213.0,90212.0,0.0120829]
[1765670725806,0.05748,90213.0,90212.0,0.02915]
[1765670726407,0.05748,90213.0,90212.0,0.05883]
[1765670727910,0.41828,90213.0,90212.0,0.05883]
[1765670728307,0.02992,90213.0,90212.0,0.05883]
[1765670728606,0.0997566,90218.0,90212.0,0.05883]
[1765670728607,0.05934,90218.0,90217.0,0.0568]
[1765670728803,0.05934,90218.0,90217.0,0.0678823]
[1765670729794,0.06034,90218.0,90217.0,0.0678823]
[1765670730310,0.06034,90218.0,90217.0,0.0688823]
[1765670732212,0.001,90218.0,90217.0,0.0688823]
[1765670732402,0.03053,90218.0,90217.0,0.0688823]
[1765670732803,0.06034,90218.0,90217.0,0.0688823]
[1765670733113,0.06034,90218.0,90217.0,0.4296823]
[1765670733413,0.140083,90218.0,90217.0,0.4296823]
[1765670733612,0.06034,90218.0,90217.0,0.4296823]
[1765670735811,0.001,90218.0,90217.0,0.4296823]
[1765670736209,0.04521756,90219.0,90218.0,0.0568]
[1765670736415,0.00016628,90220.0,90219.0,0.0678821]
[1765670739310,0.00016628,90220.0,90219.0,0.0688821]
[1765670741517,0.05934,90240.0,90239.0,0.0678796]
[1765670742211,0.13892895,90240.0,90239.0,0.0678796]
[1765670742817,0.14392895,90240.0,90239.0,0.0678796]
[1765670743419,0.15887895,90240.0,90239.0,0.0678796]
[1765670744010,0.07929,90240.0,90239.0,0.0678796]
[1765670744612,0.07929,90240.0,90239.0,0.0408796]
[1765670746112,0.05934,90231.0,90230.0,0.00016628]
[1765670746316,0.05934,90231.0,90230.0,0.01124698]
[1765670746521,0.05934,90231.0,90230.0,0.04104698]
[1765670747910,0.06134,90231.0,90230.0,0.04104698]
[1765670748115,0.06134,90231.0,90230.0,0.06804698]
[1765670748614,0.06234,90231.0,90230.0,0.01124698]
[1765670750422,0.06234,90231.0,90230.0,0.00016628]
[1765670751423,0.05934,90211.0,90210.0,0.0568]
[1765670751618,0.05934,90211.0,90210.0,0.0678832]
[1765670752226,0.05934,90211.0,90210.0,0.0853232]
[1765670752522,0.05934,90211.0,90210.0,0.0873232]
[1765670753524,0.05934,90211.0,90210.0,0.0883232]
[1765670754117,0.05934,90211.0,90210.0,0.0708832]
[1765670754314,0.05934,90211.0,90210.0,0.0598]
[1765670755320,0.05934,90211.0,90210.0,0.003]
[1765670755719,0.05934,90211.0,90210.0,0.03222]
[1765670756226,0.05934,90211.0,90210.0,0.06006]
[1765670756918,0.05968301,90212.0,90211.0,0.0681431]
[1765670757115,0.05968301,90216.0,90214.0,0.0681427]
[1765670757319,0.05968301,90216.0,90215.0,0.05706]
[1765670757517,0.05968301,90218.0,90217.0,0.05706]
[1765670757718,0.05674,90218.0,90217.0,0.41786]
[1765670758118,0.05674,90218.0,90217.0,0.05706]
[1765670759224,0.05674,90218.0,90217.0,0.001]
[1765670761030,0.00016628,90220.0,90219.0,0.05706]
[1765670761424,0.05988046,90220.0,90219.0,0.05706]
[1765670762330,0.05988046,90220.0,90219.0,0.05806]
[1765670763329,0.00016628,90220.0,90219.0,0.05806]
[1765670764220,0.11662046,90220.0,90219.0,0.05806]
[1765670764617,0.05690628,90220.0,90219.0,0.05806]
[1765670766934,0.05690628,90220.0,90219.0,0.001]
[1765670770122,0.05674,90210.0,90209.0,0.3718833]
[1765670770327,0.05674,90210.0,90209.0,0.4289433]
[1765670770630,0.05674,90210.0,90209.0,0.4452133]
[1765670771335,0.05674,90210.0,90209.0,0.4472133]
[1765670772035,0.05674,90210.0,90209.0,0.4482133]
[1765670775336,0.05674,90210.0,90209.0,0.3748833]
[1765670775533,0.05674,90210.0,90209.0,0.0711433]
[1765670776544,0.05674,90210.0,90209.0,0.0140833]
[1765670777633,0.13637372,90210.0,90209.0,0.003]
[1765670778540,0.05674,90210.0,90209.0,0.003]
[1765670779944,0.13636207,90210.0,90209.0,0.003]
[1765670780140,0.05674,90210.0,90209.0,0.003]
[1765670780340,0.13636019,90210.0,90209.0,0.003]
[1765670781141,0.05674,90210.0,90209.0,0.003]
[1765670782432,0.07101,90210.0,90209.0,0.003]
[1765670783344,0.15062015,90210.0,90209.0,0.003]
[1765670784147,0.07101,90210.0,90209.0,0.003]
[1765670785049,0.15061351,90210.0,90209.0,0.003]
[1765670785648,0.13634351,90210.0,90209.0,0.03143]
[1765670788951,0.05674,90210.0,90209.0,0.03143]
[1765670789652,0.07101,90210.0,90209.0,0.003]
[1765670789844,0.07101,90210.0,90209.0,0.0140833]
[1765670790744,0.05674,90210.0,90209.0,0.0712433]
[1765670794840,0.05674,90210.0,90209.0,0.0140833]
[1765670795038,0.0820932,90210.0,90209.0,0.003]
[1765670798158,0.07101,90210.0,90209.0,0.0140833]
[1765670798350,0.05674,90210.0,90209.0,0.0712433]
[1765670799154,0.07101,90210.0,90209.0,0.0140833]
[1765670799358,0.1707666,90210.0,90209.0,0.003]
[1765670799650,0.07101,90210.0,90209.0,0.003]
[1765670800451,0.07401,90210.0,90209.0,0.002]
[1765670800847,0.07401,90210.0,90203.0,0.0389839]
[1765670800848,0.05875,90204.0,90203.0,0.0389839]
[1765670801053,0.41955,90204.0,90203.0,0.0389839]
[1765670801454,0.05875,90204.0,90203.0,0.0682439]
[1765670802052,0.06075,90204.0,90203.0,0.0682439]
[1765670802961,0.06375,90204.0,90203.0,0.0682439]
[1765670806363,0.03389,90204.0,90203.0,0.0682439]
[1765670806658,0.06375,90204.0,90203.0,0.0682439]
[1765670813183,0.03389,90204.0,90203.0,0.0682439]
[1765670813366,0.005,90204.0,90203.0,0.0682439]
[1765670814466,0.005,90204.0,90203.0,0.4290439]
[1765670814667,0.07963381,90206.0,90205.0,0.075]
[1765670814867,0.07963381,90209.0,90208.0,0.05716]
[1765670816073,0.07963381,90210.0,90209.0,0.0661033]
[1765670817064,0.07963381,90211.0,90210.0,0.07362]
[1765670817577,0.07963381,90212.0,90211.0,0.0676231]
[1765670817876,0.07963381,90212.0,90211.0,0.4284231]
[1765670818575,0.07963381,90217.0,90216.0,0.0676224]
[1765670818780,0.07963381,90218.0,90217.0,0.05654]
[1765670819086,0.07963381,90218.0,90215.0,0.01708]
[1765670819087,0.07963381,90219.0,90218.0,0.0676222]
[1765670819277,0.07980009,90220.0,90218.0,0.0676222]
[1765670819478,0.10769009,90220.0,90219.0,0.41734]
[1765670819678,0.13541009,90220.0,90219.0,0.41734]
[1765670820180,0.10769009,90220.0,90219.0,0.41734]
[1765670820380,0.02805628,90220.0,90219.0,0.41734]
[1765670820880,0.03005628,90220.0,90219.0,0.41734]
[1765670821670,0.03205628,90220.0,90219.0,0.41734]
[1765670822181,0.05977628,90220.0,90219.0,0.41734]
[1765670823267,0.05777628,90220.0,90219.0,0.41734]
[1765670823464,0.05877628,90220.0,90219.0,0.41734]
[1765670823871,0.05777628,90220.0,90219.0,0.41734]
[1765670824076,0.05877628,90220.0,90219.0,0.41734]
[1765670827487,0.00316628,90220.0,90219.0,0.41734]
[1765670828196,0.03105628,90220.0,90219.0,0.41734]
[1765670829271,0.05877628,90220.0,90219.0,0.41734]
[1765670833488,0.05877628,90220.0,90219.0,0.05654]
[1765670833788,0.05877628,90220.0,90219.0,0.41734]
[1765670837489,0.05877628,90220.0,90219.0,0.05654]
[1765670842296,0.13841009,90220.0,90219.0,0.05654]
[1765670842498,0.13741009,90220.0,90219.0,0.05654]
[1765670842697,0.13841009,90220.0,90219.0,0.05654]
[1765670843397,0.05877628,90220.0,90219.0,0.05654]
[1765670847003,0.00316628,90220.0,90215.0,0.0696825]
[1765670847201,0.05676,90216.0,90215.0,0.0696825]
[1765670847387,0.05676,90216.0,90215.0,0.0586]
[1765670847584,0.05676,90216.0,90215.0,0.02996]
[1765670847786,0.05676,90216.0,90215.0,0.0586]
[1765670848491,0.05676,90216.0,90215.0,0.0696826]
[1765670849704,0.05776,90216.0,90215.0,0.0696826]
[1765670853102,0.05776,90216.0,90215.0,0.0110826]
[1765670853798,0.05776,90216.0,90215.0,0.0410426]
[1765670853995,0.05676,90212.0,90211.0,0.011083]
[1765670854303,0.05676,90212.0,90200.0,0.01663]
[1765670854304,0.05676,90208.0,90207.0,0.0696835]
[1765670854503,0.13644921,90208.0,90207.0,0.0696835]
[1765670855904,0.13644921,90208.0,90207.0,0.0706835]
[1765670856907,0.05676,90208.0,90207.0,0.0706835]
[1765670864716,0.05676,90208.0,90207.0,0.0873135]
[1765670868423,0.05676,90208.0,90207.0,0.0120835]
[1765670868620,0.05676,90208.0,90207.0,0.0596]
[1765670873228,0.05676,90208.0,90207.0,0.07623]
[1765670875625,0.41756,90208.0,90207.0,0.07623]
[1765670879336,0.05676,90208.0,90207.0,0.07623]
[1765670902141,0.06218194,90208.0,90207.0,0.07623]
[1765670918256,0.05676,90208.0,90207.0,0.07623]
[1765670918458,0.05549,90208.0,90207.0,0.07623]
[1765670919749,0.02811,90208.0,90207.0,0.07623]
[1765670920356,0.05549,90208.0,90207.0,0.07623]
[1765670927064,0.15514107,90213.0,90212.0,0.07373]
[1765670928361,0.15514107,90213.0,90212.0,0.0848129]
[1765670933059,0.05561,90213.0,90212.0,0.0848129]
[1765670945074,0.02823,90213.0,90212.0,0.0848129]
[1765670945776,0.05607,90213.0,90212.0,0.0848129]
[1765670945959,0.12775107,90216.0,90215.0,0.0706226]
[1765670946164,0.12775107,90219.0,90218.0,0.0885622]
[1765670946366,0.15559107,90219.0,90218.0,0.0885622]
[1765670948273,0.15659107,90219.0,90218.0,0.0885622]
[1765670948476,0.05706,90219.0,90218.0,0.0885622]
[1765670948864,0.05806,90219.0,90218.0,0.0885622]
[1765670951473,0.09953107,90224.0,90223.0,0.0706216]
[1765670951474,0.07968189,90224.0,90223.0,0.0706216]
[1765670951674,0.09953107,90225.0,90223.0,0.0706216]
[1765670951675,0.07968189,90227.0,90226.0,0.05954]
[1765670952274,0.07968189,90227.0,90225.0,0.01794]
[1765670952275,0.07968189,90229.0,90228.0,0.07748]
[1765670953276,0.07968189,90230.0,90229.0,0.0706209]
[1765670953476,0.13574189,90230.0,90229.0,0.0706209]
[1765670954487,0.13774189,90230.0,90229.0,0.0706209]
[1765670954688,0.05806,90230.0,90229.0,0.0706209]
[1765670954889,0.13774189,90230.0,90229.0,0.0706209]
[1765670955074,0.13874189,90230.0,90229.0,0.0706209]
[1765670955278,0.05906,90230.0,90229.0,0.0706209]
[1765670966488,0.05906,90230.0,90229.0,0.0406409]
[1765670966696,0.41986,90230.0,90229.0,0.0406409]
[1765670967088,0.41986,90230.0,90229.0,0.0689609]
[1765670969691,0.41986,90230.0,90229.0,0.0686509]
[1765670971099,0.41886,90230.0,90229.0,0.0686509]
[1765670971296,0.42086,90230.0,90229.0,0.0686509]
[1765670972299,0.13974189,90230.0,90229.0,0.0686509]
[1765670974199,0.06006,90230.0,90229.0,0.0686509]
[1765670974399,0.13966114,90230.0,90229.0,0.0686509]
[1765670975198,0.06006,90230.0,90229.0,0.0686509]
[1765670975704,0.06006,90230.0,90229.0,0.0403309]
[1765670975900,0.06006,90230.0,90229.0,0.0110809]
[1765670976498,0.0150807,90230.0,90228.0,0.011081]
[1765670976698,0.05704,90229.0,90228.0,0.011081]
[1765670976899,0.05704,90229.0,90228.0,0.068651]
[1765670978901,0.06104,90229.0,90228.0,0.068651]
[1765670985102,0.06104,90229.0,90228.0,0.086131]
[1765670986508,0.06004,90229.0,90228.0,0.086131]
[1765670988210,0.05804,90229.0,90228.0,0.086131]
[1765670988412,0.06004,90229.0,90228.0,0.086131]
[1765670989312,0.03295,90229.0,90228.0,0.086131]
[1765670989915,0.06004,90229.0,90228.0,0.086131]
[1765670990413,0.05804,90229.0,90228.0,0.086131]
[1765670990611,0.06004,90229.0,90228.0,0.086131]
[1765670991210,0.05804,90229.0,90228.0,0.086131]
[1765670991416,0.06004,90229.0,90228.0,0.086131]
[1765671042957,0.003,90229.0,90228.0,0.086131]
[1765671043445,0.05947,90229.0,90228.0,0.086131]
[1765671044056,0.0319,90229.0,90228.0,0.086131]
[1765671044257,0.003,90229.0,90228.0,0.086131]
[1765671044457,0.13626317,90235.0,90234.0,0.0845902]
[1765671046167,0.13726317,90235.0,90234.0,0.0845902]
[1765671046660,0.13826317,90235.0,90234.0,0.0845902]
[1765671047156,0.05847,90235.0,90234.0,0.0845902]
[1765671063372,0.05847,90235.0,90234.0,0.0675602]
[1765671066468,0.05847,90235.0,90234.0,0.0842102]
[1765671069075,0.13826317,90235.0,90234.0,0.0842102]
[1765671072279,0.05847,90235.0,90234.0,0.0842102]
[1765671080483,0.05847,90235.0,90234.0,0.0675602]
[1765671098806,0.05847,90235.0,90234.0,0.0840002]
[1765671114512,0.0695501,90235.0,90234.0,0.05648]
[1765671116723,0.05847,90235.0,90234.0,0.05648]
[1765671122526,0.05847,90235.0,90234.0,0.07342]
[1765671123823,0.0309,90235.0,90234.0,0.07342]
[1765671124024,0.002,90235.0,90234.0,0.07342]
[1765671144856,0.08176294,90235.0,90234.0,0.07342]
[1765671145253,0.002,90235.0,90234.0,0.07342]
[1765671145452,0.00016628,90238.0,90237.0,0.05661]
[1765671145660,0.00016628,90238.0,90237.0,0.41741]
[1765671147557,0.00016628,90238.0,90237.0,0.41841]
[1765671149351,0.05993132,90238.0,90237.0,0.41841]
[1765671150356,0.00016628,90238.0,90237.0,0.41841]